Cogmind - Beta 9.4 @@@ ROGUE MODE // 2020.03.01 @ 16:22:00 Player: s0lid Result: Self-destructed Performance ------------- Evolutions (3) 1500 Regions Visited (6) 1200 Robots Destroyed (93) 465 Value Destroyed (3580) 3580 Prototype IDs (9) 180 Alien Tech Used (0) 0 Bonus (2377) 2377 TOTAL SCORE: 9302 Bonus ------- Pacifist 200 High Alert Combat Kills 1017 Follower Combat Kills 540 Entered Garrisons 200 Used RIF Installer 500 Friendly Fire -80 Cogmind --------- Core Integrity 182/700 Matter 85/300 Energy 99/100 System Corruption 7% Temperature Cool (0) Movement Core (50) Location -7/Factory Parts ------- > --- POWER (1) -------- (None) > --- PROPULSION (3) --- (None) > --- UTILITY (7) ------ Enhanced Optical Array Advanced Signal Interpreter Relay Coupler [NC] (14) Relay Coupler [ARC] (11) Relay Coupler [Swarmer] (41) Relay Coupler [Grunt] (31) > --- WEAPON (2) ------- Improved Datajack > --- INVENTORY (4) ---- Light Deuterium Engine High-capacity Storage Unit Relay Coupler [NC] (32) Mini Assault Cannon Peak State ------------ > --- POWER ------------ Improved Deuterium Engine > --- PROPULSION ------- Carbon-fiber Leg Armored Huge Wheel > --- UTILITY ---------- High-capacity Storage Unit Enhanced Optical Array Advanced Sensor Array Advanced Signal Interpreter Relay Coupler [NC] Relay Coupler [Grunt] Relay Coupler [Duelist] > --- WEAPON ----------- Improved Spread Laser Gauss Rifle > --- INVENTORY -------- Light Ion Engine Light Deuterium Engine Light Nuclear Core System Shield Relay Coupler [NC] Relay Coupler [Swarmer] Relay Coupler [Swarmer] Mini Assault Cannon Mini Assault Cannon Mini Grenade Launcher Improved Datajack [Rating: 45] Favorites ----------- Power Heavy Ion Engine Engine Heavy Ion Engine Power Core Light Nuclear Core Propulsion Improved Carbon-fiber Leg Treads Medium Treads Leg Improved Carbon-fiber Leg Wheel Wheel Flight Unit Improved Flight Unit Utility Improved Targeting Computer Device Advanced Sensor Array Storage High-capacity Storage Unit Processor Improved Targeting Computer Hackware Relay Coupler [NC] Protection Improved Medium Armor Plating Weapon Gauss Rifle Energy Gun Heavy EM Pulse Gun Energy Cannon Advanced Beam Cannon Ballistic Gun Gauss Rifle Ballistic Cannon Advanced Assault Cannon Launcher Mini Grenade Launcher Special Melee Weapon Improved Datajack Build | -11 -10 -9 -9 -9 -9 -7 ------- Run | Scr Mat Mat Sto Gar Rec Fac Slots Evolved 6 | . . 2 . . . 4 Power . | . . . . . . . Propulsion 1 | . . . . . . 1 Utility 5 | . . 2 . . . 3 Weapon . | . . . . . . . Parts Attached 131 | 7 1 34 6 12 3 68 Power 11 | 1 . 2 1 . . 7 Engine 10 | 1 . 2 1 . . 6 Core 1 | . . . . . . 1 Reactor . | . . . . . . . Propulsion 38 | 2 . 7 2 5 2 20 Treads 3 | . . . . 1 . 2 Leg 15 | . . . . 3 . 12 Wheel 19 | 2 . 6 2 1 2 6 Hover . | . . . . . . . Flight 1 | . . 1 . . . . Utility 34 | 1 1 11 . 2 1 18 Device 3 | . . 1 . . . 2 Storage 7 | 1 1 4 . . . 1 Processor 9 | . . 2 . 2 1 4 Hackware 8 | . . . . . . 8 Protection 7 | . . 4 . . . 3 Artifact . | . . . . . . . Weapon 48 | 3 . 14 3 5 . 23 Energy Gun 11 | . . 2 1 1 . 7 Energy Cannon 4 | . . 3 1 . . . Ballistic Gun 17 | 3 . 6 1 3 . 4 Ballistic Cannon 5 | . . . . . . 5 Launcher 7 | . . 3 . 1 . 3 Special Weapon . | . . . . . . . Impact Weapon . | . . . . . . . Slashing Weapon . | . . . . . . . Piercing Weapon . | . . . . . . . Special Melee Weapon 4 | . . . . . . 4 Unidentified Prototypes 8 | . . 2 2 . . 4 Parts Lost 32 | . . 8 1 4 . 19 Power 5 | . . 1 1 . . 3 Propulsion 8 | . . 2 . 1 . 5 Utility 10 | . . 1 . 1 . 8 Weapon 9 | . . 4 . 2 . 3 Highest Loss Streak 6 | . . 4 1 2 . 6 Average Slot Usage (%) 96 | . 95 91 99 98 100 95 Engine 9 | . 14 11 10 11 11 6 Treads 1 | . . . . . . 2 Leg 6 | . . . . 7 . 11 Wheel 12 | . 28 20 22 13 21 5 Device 3 | . . 1 . . . 6 Storage 16 | . 23 24 22 22 22 8 Processor 17 | . . 9 11 19 22 19 Hackware 4 | . . . . . . 10 Protection 4 | . . 4 11 2 . 4 Energy Gun 3 | . . 5 . 6 . 3 Energy Cannon 1 | . . 3 11 2 . . Ballistic Gun 9 | . 28 9 11 10 22 4 Special Melee Weapon 1 | . . . . . . 3 Naked Turns . | . . . . . . . Heaviest Build 66 | 11 19 65 66 66 63 61 Greatest Support 56 | 26 26 26 26 36 36 56 Greatest Overweight (x) 5 | . . 3 3 3 3 5 Average Overweight (x) 2 | . . 1 2 2 2 2 Largest Inventory Capacity 20 | 6 10 20 18 18 18 18 Average Capacity 14 | 5 8 13 18 18 18 12 Most Carried 18 | 3 6 17 18 18 18 18 Average Carried 13 | 1 5 11 16 17 18 12 Final Capacity 18 | 6 10 18 18 18 18 4 Final Carried 18 | 2 6 12 18 18 18 4 Class Distribution -------------------- 36% | Scavenger-Mutant 31% | Bothacker-Mutant 21% | Mutant 6% | Commander-Mutant Dominant Class ---------------- Mutant | -10/Materials Mutant | -9/Materials Scavenger-Mutant | -9/Storage Scavenger-Mutant | -9/Garrison Commander-Mutant | -9/Recycling Bothacker-Mutant | -7/Factory Resources | -11 -10 -9 -9 -9 -9 -7 ----------- Run | Scr Mat Mat Sto Gar Rec Fac Matter Collected 2928 | 229 . 816 106 216 90 1471 Remotely . | . . . . . . . Salvage Created 3318 | . . 1146 343 400 14 1415 Parts 186 | . . 77 14 25 1 69 Haulers Intercepted 5 | . . 3 1 . . 1 Recyclers Shooed 5 | . . 2 . . . 3 Parts Field Recycled . | . . . . . . . Retrieved Matter . | . . . . . . . Parts Self-Destructed . | . . . . . . . Prevented . | . . . . . . . Kills | -11 -10 -9 -9 -9 -9 -7 ------- Run | Scr Mat Mat Sto Gar Rec Fac Combat Hostiles Destroyed 63 | . . 26 2 9 1 25 Guns 34 | . . 12 . 7 1 14 Cannons 13 | . . 3 2 1 . 7 AOE 16 | . . 11 . 1 . 4 Classes Destroyed 16 | . . 10 . . 1 5 Worker 6 | . . 3 . . . 3 Builder 4 | . . 2 . . . 2 Tunneler 1 | . . 1 . . . . Hauler 5 | . . 3 1 . . 1 Recycler 6 | . . 1 2 . . 3 Mechanic 1 | . . . . . . 1 Operator 2 | . . 1 . . . 1 Drone 1 | . . . . . 1 . Watcher 5 | . . 3 . . . 2 Swarmer 12 | . . 11 . 1 . . Grunt 25 | . . 9 . 5 . 11 Brawler 4 | . . . . . . 4 Duelist 1 | . . . . . . 1 Sentry 14 | . . 6 2 3 . 3 Hunter 3 | . . . . . . 3 Programmer 3 | . . . . . . 3 Best Kill Streak 8 | . . 8 3 2 1 6 Combat Bots Only 6 | . . 6 1 2 1 4 Max Kills in Single Turn 3 | . . 3 1 1 1 2 Gunslinging . | . . . . . . . Exploded 3 | . . 3 . 1 . 2 Melee . | . . . . . . . Uniques/NPCs Destroyed . | . . . . . . . Combat | -11 -10 -9 -9 -9 -9 -7 -------- Run | Scr Mat Mat Sto Gar Rec Fac Damage Taken 4484 | . . 1272 107 447 1 2657 Core 793 | . . 145 17 113 . 518 Absorbed by Shields 161 | . . 67 . . . 94 Core Remaining (%) 77 | 100 100 . . . 31 . Volleys Fired 280 | . 2 69 9 36 10 154 Largest 2 | . 2 2 2 2 2 2 Hottest 105 | . 40 98 91 98 51 105 Shots Fired 464 | . 4 127 18 58 18 239 Gun 347 | . 4 103 9 46 18 167 Cannon 101 | . . 19 9 11 . 62 Launcher 16 | . . 5 . 1 . 10 Special . | . . . . . . . Kinetic 326 | . 4 66 9 31 18 198 Thermal 62 | . . 15 5 11 . 31 Explosive 16 | . . 5 . 1 . 10 Electromagnetic 60 | . . 41 4 15 . . Robot Hit Streak 16 | . 3 9 11 11 1 16 Robot Miss Streak 7 | . 1 4 1 3 4 7 Penetration Max 1 | . . . . . . 1 Secondary Targets 3 | . . . . 1 . 2 Max Gunslinging Chain 1 | . . . . 1 . 1 Shots Hit Robots 274 | . 3 68 13 40 4 146 Core Hits 190 | . . 52 6 16 1 115 Critical Hits 4 | . . . 1 . 1 2 Critical Kills 2 | . . . . . 1 1 Critical Parts Destroyed 1 | . . . . . . 1 Melee Attacks 12 | . . . . . . 12 Impact . | . . . . . . . Slashing . | . . . . . . . Piercing . | . . . . . . . Sneak Attacks 5 | . . . . . . 5 Combat Hostiles . | . . . . . . . Follow-up Attacks . | . . . . . . . Damage Inflicted 7537 | . 24 2187 257 658 31 4380 Guns 3719 | . 24 805 82 482 31 2295 Cannons 1335 | . . 221 175 143 . 796 Explosions 2443 | . . 1121 . 33 . 1289 Melee . | . . . . . . . Ramming 40 | . . 40 . . . . Kinetic 3319 | . 24 423 82 336 31 2423 Thermal 1453 | . . 538 104 143 . 668 Explosive 1921 | . . 746 . 33 . 1142 Electromagnetic 804 | . . 440 71 146 . 147 Impact . | . . . . . . . Slashing . | . . . . . . . Piercing . | . . . . . . . Highest Corruption 7 | . . . . . . 7 Average Corruption 4 | . . . . . . 4 Corruption Purged . | . . . . . . . Effects 37 | . . . . . . 37 Message Errors 3 | . . . . . . 3 Matter Fused 7 | . . . . . . 7 Heat Flow Errors 4 | . . . . . . 4 Energy Discharges 3 | . . . . . . 3 Parts Rejected 4 | . . . . . . 4 Data Loss (minor) 5 | . . . . . . 5 Data Loss (major) 1 | . . . . . . 1 Misfires 2 | . . . . . . 2 Targeting Errors 7 | . . . . . . 7 Weapon Failures 1 | . . . . . . 1 Overload Shots . | . . . . . . . Overflow Damage 138 | . . 123 . . . 15 Projectiles 15 | . . 10 . . . 5 Explosions 123 | . . 113 . . . 10 Melee . | . . . . . . . Knockbacks 6 | . . . . . . 6 Impact . | . . . . . . . Kinetic 6 | . . . . . . 6 Secondary . | . . . . . . . Self-Inflicted Damage 548 | . . 388 . . . 160 Shots 12 | . . 7 . . . 5 Rammed 2 | . . 2 . . . . Targets Rammed 2 | . . 2 . . . . Kicked . | . . . . . . . Crushed . | . . . . . . . Highest Temperature 450 | . . 243 235 263 . 450 Average Temperature 86 | . . 43 66 103 . 114 Received Heat Transfer 1349 | . . 252 36 198 . 863 Effects 5 | . . . . 2 . 3 Shutdowns 1 | . . . . . . 1 Interference 3 | . . . . 2 . 1 Damage (minor) 1 | . . . . . . 1 Siege Activations . | . . . . . . . Robots Corrupted . | . . . . . . . Combat Hostiles . | . . . . . . . Parts Fried 2 | . . 2 . . . . Impact Corruptions . | . . . . . . . Robots Melted . | . . . . . . . Combat Hostiles . | . . . . . . . Parts Melted 1 | . . . . 1 . . Heat Transferred 1655 | . . 646 185 259 . 565 Parts Sabotaged . | . . . . . . . Parts Stolen . | . . . . . . . Parts Stripped . | . . . . . . . Power Chain Reactions 2 | . . 2 . . . . Missiles Intercepted . | . . . . . . . Alert | -11 -10 -9 -9 -9 -9 -7 ------- Run | Scr Mat Mat Sto Gar Rec Fac Peak Influence 1518 | . 15 630 167 1059 732 1518 Average Influence 799 | . 6 309 84 637 537 1257 Maximum Alert Level 4 | . . 2 . 3 3 4 Low Security (%) 15 | 100 100 32 100 9 . . Level 1 12 | . . 41 . 27 5 . Level 2 19 | . . 26 . 17 86 . Level 3 15 | . . . . 45 7 15 Level 4 37 | . . . . . . 84 Level 5 . | . . . . . . . High Security . | . . . . . . . Max Security . | . . . . . . . Squads Dispatched 19 | . . 3 . . . 16 Investigation 3 | . . 1 . . . 2 Extermination 2 | . . . . . . 2 Reinforcement 8 | . . 2 . . . 6 Assault 5 | . . . . . . 5 Garrison 1 | . . . . . . 1 Intercept . | . . . . . . . Construction Impeded 3 | . . . . . . 3 Haulers Reinforced 2 | . . . . . . 2 Stealth | -11 -10 -9 -9 -9 -9 -7 --------- Run | Scr Mat Mat Sto Gar Rec Fac Distress Signals 2 | . . 1 . . . 1 Communications Jammed . | . . . . . . . Distress Signals . | . . . . . . . Times Spotted 138 | . 2 41 2 22 14 57 Peak Tracking Total 6 | . 1 6 2 4 3 6 Tactical Retreats 5 | . . 1 . 2 . 2 Traps | -11 -10 -9 -9 -9 -9 -7 ------- Run | Scr Mat Mat Sto Gar Rec Fac Traps Triggered 11 | . . 1 1 6 . 3 Indirectly . | . . . . . . . Trap Hack Attempts . | . . . . . . . Triggered . | . . . . . . . Disarmed . | . . . . . . . Reprogrammed . | . . . . . . . Reused . | . . . . . . . Traps Extracted . | . . . . . . . Installed . | . . . . . . . Triggered . | . . . . . . . Machines | -11 -10 -9 -9 -9 -9 -7 ---------- Run | Scr Mat Mat Sto Gar Rec Fac Machines Disabled 39 | . . 7 . 3 8 21 Max in Single Turn 9 | . . 3 . 1 . 9 Garrison Access 1 | . . . . . . 1 Garrison Relay 3 | . . . . 3 . . Machines Sabotaged . | . . . . . . . Garrisons Compromised . | . . . . . . . Overloaded Fab Kills . | . . . . . . . Fab Network Shutdowns . | . . . . . . . Hacking | -11 -10 -9 -9 -9 -9 -7 --------- Run | Scr Mat Mat Sto Gar Rec Fac Machines Accessed 17 | . 1 6 3 . 4 3 Terminals 14 | . 1 5 2 . 4 2 Fabricators . | . . . . . . . Repair Stations . | . . . . . . . Recycling Units . | . . . . . . . Scanalyzers 1 | . . 1 . . . . Garrison Access 2 | . . . 1 . . 1 Total Hacks 41 | . 2 15 5 . 12 7 Successful 20 | . 2 8 3 . 3 4 Failed 21 | . . 7 2 . 9 3 Catastrophic 5 | . . 1 2 . 1 1 Database Lockouts . | . . . . . . . Manual 15 | . 1 4 4 . 1 5 Terminals 35 | . 2 11 4 . 12 6 Fabricators . | . . . . . . . Repair Stations . | . . . . . . . Recycling Units . | . . . . . . . Scanalyzers 4 | . . 4 . . . . Garrison Access 2 | . . . 1 . . 1 Terminal Hacks 14 | . 2 4 2 . 3 3 Part Schematic 1 | . . . . . 1 . Robot Schematic 1 | . . . . . 1 . Branch Access Points 3 | . . 1 1 . 1 . Emergency Access Points 1 | . . 1 . . . . Unreport Threat 4 | . 1 1 1 . . 1 Locate Traps 3 | . 1 . . . . 2 Registered Prototypes 1 | . . 1 . . . . Fabricator Hacks . | . . . . . . . Repair Station Hacks . | . . . . . . . Recycling Unit Hacks . | . . . . . . . Scanalyzer 4 | . . 4 . . . . Insert Component 2 | . . 2 . . . . Analyze 2 | . . 2 . . . . Garrison Access Hacks 2 | . . . 1 . . 1 Unlock Access 1 | . . . 1 . . . Seal Access 1 | . . . . . . 1 Unauthorized Hacks . | . . . . . . . Terminals . | . . . . . . . Fabricators . | . . . . . . . Repair Stations . | . . . . . . . Recycling Units . | . . . . . . . Scanalyzers . | . . . . . . . Garrison Access . | . . . . . . . Data Cores Recovered . | . . . . . . . Used . | . . . . . . . Hacking Detections 11 | . . 4 2 . 4 1 Full Trace Events 3 | . . 1 . . 1 1 Feedback Events . | . . . . . . . Feedback Blocked . | . . . . . . . Robot Schematics Acquired 1 | . . . . . 1 . Robots Built . | . . . . . . . Matter . | . . . . . . . Time . | . . . . . . . Total Robot Build Rating . | . . . . . . . Part Schematics Acquired 3 | . . 2 . . 1 . Parts Built . | . . . . . . . Matter . | . . . . . . . Time . | . . . . . . . Total Part Build Rating . | . . . . . . . Parts Repaired . | . . . . . . . Time . | . . . . . . . Parts Recycled . | . . . . . . . Recycled Matter . | . . . . . . . Retrieved Matter . | . . . . . . . Retrieved Components . | . . . . . . . Parts Scanalyzed 2 | . . 2 . . . . Part Schematics Acquired 2 | . . 2 . . . . Parts Damaged . | . . . . . . . Bothacking | -11 -10 -9 -9 -9 -9 -7 ------------ Run | Scr Mat Mat Sto Gar Rec Fac Used RIF Installer 1 | . . . . 1 . . Robots Hacked 9 | . . . . . . 9 Non-combat 5 | . . . . . . 5 Combat 4 | . . . . . . 4 Robot Hacks Applied 10 | . . . . . . 10 generate_anomaly 1 | . . . . . . 1 generate_echo 1 | . . . . . . 1 drop_inventory 1 | . . . . . . 1 link_fov 2 | . . . . . . 2 scatter_targeting 1 | . . . . . . 1 go_dormant 1 | . . . . . . 1 overwrite_iff 1 | . . . . . . 1 formatsys_high 2 | . . . . . . 2 Relay Couplers Released 15 | . . . . 15 . . Machine Destruction 15 | . . . . 15 . . Attached 7 | . . . . . . 7 Robots Rewired 9 | . . . . 3 6 . Allies Hacked . | . . . . . . . Hacks Repelled . | . . . . . . . Allies | -11 -10 -9 -9 -9 -9 -7 -------- Run | Scr Mat Mat Sto Gar Rec Fac Total Allies 12 | . . . . 3 6 3 Largest Group 6 | . . . . 3 6 5 Highest-Rated Group 124 | . . . . 114 124 109 Highest-Rated Ally 38 | . . . . 38 34 34 Total Orders . | . . . . . . . Ally Attacks 132 | . . . . 38 64 30 Total Damage 4366 | . . . . 1148 2241 977 Kills 67 | . . . . 21 40 6 Allies Corrupted . | . . . . . . . Allies Melted . | . . . . . . . Intel | -11 -10 -9 -9 -9 -9 -7 ------- Run | Scr Mat Mat Sto Gar Rec Fac Robot Analysis Total . | . . . . . . . Derelict Logs Recovered . | . . . . . . . Drone Launches . | . . . . . . . Drone Recoveries . | . . . . . . . Exploration | -11 -10 -9 -9 -9 -9 -7 ------------- Run | Scr Mat Mat Sto Gar Rec Fac Turns Passed 5581 | 46 126 959 279 905 753 2513 Spaces Moved 3363 | 37 115 664 193 541 476 1337 Core 14 | 1 . . . . . 13 Treads 56 | . . . . . . 56 Legs 732 | . . . . 70 12 650 Wheels 2561 | 36 115 664 193 471 464 618 Hover . | . . . . . . . Flight . | . . . . . . . Fastest Speed 50 | 50 90 90 100 110 110 50 Average Speed 122 | 89 90 100 109 126 111 141 Slowest Speed 210 | 100 90 130 110 150 150 210 Overloaded Moves . | . . . . . . . Propulsion Burnouts . | . . . . . . . Robots Hopped . | . . . . . . . Cave-ins Triggered . | . . . . . . . Exploration Rate (%) 43 | 3 25 61 30 65 95 27 Regions Visited 6 Branch Regions 2 Pre-discovered Areas . | . . . . . . . Known Exits Taken 2 | . . 1 1 . . . Unknown Exits Taken 3 | 1 1 . . . 1 . Scrap Searched . | . . . . . . . Spaces Dug 9 | . . . . . . 9 Terrain Destroyed 254 | . . 160 . 7 1 86 Melee . | . . . . . . . Projectile 14 | . . . . . 1 13 AOE 240 | . . 160 . 7 . 73 Actions | -11 -10 -9 -9 -9 -9 -7 --------- Run | Scr Mat Mat Sto Gar Rec Fac Total 4366 | 46 132 834 247 712 681 1714 Wait 139 | . 11 24 14 11 5 74 Move 3356 | 36 114 663 192 539 475 1337 Hop . | . . . . . . . Pick Up 74 | 3 4 18 8 17 . 24 Fast Attach 53 | 5 1 13 4 4 1 25 Attach 32 | 1 . 7 . 3 . 21 Detach 12 | . . 3 1 1 1 6 Swap 48 | 1 . 14 3 5 2 23 Drop 83 | . . 21 8 16 . 38 Fire 280 | . 2 69 9 36 10 154 Melee 12 | . . . . . . 12 Ram 2 | . . 2 . . . . Kick . | . . . . . . . Crush . | . . . . . . . Escape Stasis 56 | . . . 8 48 . . Rewire 219 | . . . . 32 187 . Trap . | . . . . . . . Miscellaneous . | . . . . . . . Route ------- -11/Scrapyard -10/Materials -9/Materials (discovered 4 exits: [*Mat] / *Min / *Sto x2) -9/Storage (discovered 2 exits: Rec / Gar) -9/Garrison (discovered 2 exits: *Rec x2) -9/Recycling -7/Factory History --------- Turn | Location | Event 20 | -11/Scrapyard | Discovered new exit (range 15) 47 | -11/Scrapyard | Entered Materials 161 | -10/Materials | Discovered new exit (range 13) 173 | -10/Materials | Entered another Materials area 173 | -9/Materials | Evolved 2 slots: Utility x2 314 | -9/Materials | Build established: Mutant 417 | -9/Materials | Discovered new exit (range 8) 806 | -9/Materials | Discovered new exit (range 17) 847 | -9/Materials | Identified exit to Mines 847 | -9/Materials | Identified exit to Storage 929 | -9/Materials | Lost 4 parts (1p1n2w) 1132 | -9/Materials | Entered Storage 1190 | -9/Storage | Identified exit to Recycling 1274 | -9/Storage | Build established: Scavenger-Mutant 1349 | -9/Storage | Identified exit to Garrison 1411 | -9/Storage | Entered Garrison 1438 | -9/Garrison | Triggered checkpoint 1444 | -9/Garrison | Core integrity fell below 50% 1483 | -9/Garrison | Garrison Relay disabled 1636 | -9/Garrison | Triggered checkpoint 1784 | -9/Garrison | Triggered checkpoint 1824 | -9/Garrison | Triggered checkpoint 1832 | -9/Garrison | Triggered checkpoint 1922 | -9/Garrison | Triggered checkpoint 1924 | -9/Garrison | Garrison Relay disabled 2039 | -9/Garrison | Discovered exit to Recycling (range 13) 2167 | -9/Garrison | Garrison Relay disabled 2170 | -9/Garrison | Triggered checkpoint 2280 | -9/Garrison | Discovered exit to Recycling (range 12) 2307 | -9/Garrison | Installed Relay Interface Framework 2316 | -9/Garrison | Entered Recycling 2420 | -9/Recycling | Spotter reported a threat 2431 | -9/Recycling | Spotter reported a threat 2431 | -9/Recycling | Spotter reported a threat 2471 | -9/Recycling | Spotter reported a threat 2484 | -9/Recycling | Spotter reported a threat 2496 | -9/Recycling | Spotter reported a threat 2528 | -9/Recycling | Spotter reported a threat 2542 | -9/Recycling | Spotter reported a threat 2545 | -9/Recycling | Spotter reported a threat 2634 | -9/Recycling | Spotter reported a threat 2656 | -9/Recycling | Spotter reported a threat 2671 | -9/Recycling | Spotter reported a threat 2704 | -9/Recycling | Spotter reported a threat 2709 | -9/Recycling | Spotter reported a threat 2713 | -9/Recycling | Spotter reported a threat 2757 | -9/Recycling | Spotter reported a threat 2760 | -9/Recycling | Spotter reported a threat 2781 | -9/Recycling | Build established: Commander-Mutant 2790 | -9/Recycling | Spotter reported a threat 2818 | -9/Recycling | Spotter reported a threat 2818 | -9/Recycling | Spotter reported a threat 2824 | -9/Recycling | Spotter reported a threat 2834 | -9/Recycling | Spotter reported a threat 2859 | -9/Recycling | Spotter reported a threat 2859 | -9/Recycling | Spotter reported a threat 2860 | -9/Recycling | Spotter reported a threat 2860 | -9/Recycling | Spotter reported a threat 2895 | -9/Recycling | Discovered new exit (range 5) 2908 | -9/Recycling | Spotter reported a threat 2908 | -9/Recycling | Spotter reported a threat 2908 | -9/Recycling | Spotter reported a threat 2908 | -9/Recycling | Spotter reported a threat 3015 | -9/Recycling | Spotter reported a threat 3015 | -9/Recycling | Spotter reported a threat 3069 | -9/Recycling | Entered Factory 3069 | -7/Factory | Accompanied by 5 allies 3069 | -7/Factory | Evolved 4 slots: Propulsion x1, Utility x3 3162 | -7/Factory | Build established: Scavenger-Mutant 3166 | -7/Factory | Garrison activated, responded to threat 3259 | -7/Factory | Lost 3 parts (1n1u1w) 3469 | -7/Factory | First assault squad dispatched 3971 | -7/Factory | Build established: Bothacker-Mutant 5487 | -7/Factory | Core integrity fell below 50% 5524 | -7/Factory | Lost 4 parts (1p1n1u1w) 5582 | -7/Factory | Self-destructed Last Messages --------------- 05491_ Imp. Deuterium Engine destroyed. 05493_ Mni. Grenade Launcher destroyed. 05497_ System corrupted: Imp. Spread Laser rejected. 05497_ Acquired Imp. Spread Laser. 05529_ R-06 Scavenger collects Lgt. Ion Engine. 05532_ R-06 Scavenger collects Wheel. 05538_ R-06 Scavenger collects Imp. Heat Sink. 05548_ Lgt. Nuclear Core destroyed. 05553_ System corrupted: Mni. Assault Cannon rejected. 05555_ Acquired 50 matter. 05558_ Acquired Mni. Assault Cannon. 05560_ Imp. Spread Laser destroyed. 05567_ Arm. Huge Wheel destroyed. 05570_ Adv. Sensor Array destroyed. 05571_ Dropped Gauss Rifle. 05572_ Dropped Mni. Assault Cannon. 05573_ Relay Coupler [Swarmer] destroyed. 05575_ System Shield destroyed. 05575_ U-05 Engineer lays Concrete. 05576_ Acquired 4 matter. Map ----- +----------------------------------------------------+ | #???????# ! # """" #??????? | | #???????# """ # """" #??????? | | #???????# """ ] + """" #??????? | | #???????# """ # """" #??????? | | #???????# # #??????? | | #???????# # #??????? | | #???????# # #??????? | | #???????# + #??????? | | #???????# ######+####+########???????? | | #???????# # # #??????????????? | | #???????# # # #??????????????? | | #???????# # # #??????????????? | | #???????# # ! # #??????????????? | | ######### ########### ###????????????? | | #????????????? | | #????????????? | | ############## | | % """ # # | | """ # # | | ########### """ # # | | # # # | | """ """" # """ # # | | """ """" # """ # # | | """ """" # """ + # | | """ """" # # # | | """ """" # @ # # | | """ """" ## ###### # # | | """ """" ## # # # # | | ## # + # # | | ###+####### # # #####+#######? | | # # #???# #??????? | | # # #???# #??????? | | % # # ##### #??????? | | ###+###### # # #??????? | | # """ ###### #??????? | | """ # ][ ###### ###????? | | "T" # #????? | | # #????? | | # #????? | | # ##+########### #????? | | # ######## # #????? | | ########## ^#??????# """ """ # #????? | | #??????# """ """ # #????? | | #??????# """ """ # #????? | | #??????# # #????? | | #??????# """ """ # #????? | | #??????# """ """ # #????? | | ################??????# """ """ ! + #????? | | #?????????????????????# #+####?? | | #?????????????????????# # [#? | +----------------------------------------------------+ Best States ------------- Heat Dissipation 34 Energy Generation 16 Energy Capacity 290 Matter Stores 300 Matter Capacity 300 Sight Range 22 Robot Scan Range 16 Terrain Scan Density 10 Armor Coverage 225 Resistance: EM 20 Core Shielding 20 Evasion (%) 50 Targeting Accuracy 12 Armor Integrity Analysis 33 Recoil Reduction 2 Defensive Hacking 10 Item Schematics ----------------- Com. Wheel | -9/Materials | Scanalyzed Mni. Grenade Launcher | -9/Materials | Scanalyzed Pulse Rifle | -9/Recycling | Hacked Robot Schematics ------------------ S-10 Pest | -9/Recycling | Hacked Fabricated ------------ Nothing Alien Tech Used ----------------- None Achievements -------------- \\IAMDERELICT Challenges ------------ None Game ------ Seed CorruptionBombHumpback Manual? 0 Play Time 01:18:07 Cumulative 102.4 hours Start 2020.02.23 @ 15:54:03 End 2020.03.01 @ 16:22:00 Sessions 5 Manual Loads 0 Difficulty Rogue Special Mode None Game No. 96 Rogue 96 Adventurer 0 Explorer 0 Win Type - Total 0 Types 0/0/0/0/0/0/0 Lore% 27 Gallery% 55 Achievement% 31 Wizard Run 0 Options --------- ASCII 0 Keyboard 1 Movement Vi Keybinds 0 Fullscreen 2 Font 32/Smallcaps Map View 76x50 Tactical HUD 1 Map Filters NONE Filters NONE Steam 1 RUN: 48dbfa63-9a12-46a4-8f45-583086d26f8d